bitfinex/quotes_ETHUSD_20241023
["timestamp","ask_amount","ask_price","bid_price","bid_amount"]
[1729679950038,3.86789,2585.4,2584.9,1.72505967]
[1729679950238,5.59294967,2585.4,2584.8,2.5129296]
[1729679950443,1.72505967,2585.4,2584.8,2.5129296]
[1729679950676,0.36187107,2585.8,2584.8,2.5129296]
[1729679950677,5.59248967,2585.7,2585.1,1.72505967]
[1729679950992,5.59248967,2585.7,2585.0,0.00866993]
[1729679950993,1.72505967,2585.6,2585.2,0.7792]
[1729679951139,4.72505967,2585.6,2585.2,0.7792]
[1729679951641,0.36187107,2585.8,2585.3,1.72505967]
[1729679951842,1.72505967,2585.7,2585.2,0.78786993]
[1729679952153,0.36187107,2585.8,2585.3,1.72505967]
[1729679952356,0.36187107,2585.8,2585.5,0.00866993]
[1729679952880,2.08693074,2585.8,2585.5,0.00866993]
[1729679953565,1.72505967,2585.7,2585.5,0.00866993]
[1729679953884,2.08693074,2585.8,2585.5,0.00866993]
[1729679954344,1.72505967,2585.7,2585.5,0.00866993]
[1729679954544,2.08693074,2585.8,2585.5,0.00866993]
[1729679954740,5.95423074,2585.8,2585.5,0.00866993]
[1729679955166,1.72505967,2585.7,2585.5,0.00866993]
[1729679955764,1.72505967,2585.6,2585.3,0.00866993]
[1729679956078,1.72505967,2585.5,2585.3,0.00866993]
[1729679956282,1.72505967,2585.4,2584.9,0.79556993]
[1729679956491,1.72505967,2585.2,2584.9,0.79556993]
[1729679956649,3.86826,2585.2,2584.9,0.79556993]
[1729679956844,5.59263967,2585.6,2584.7,0.79556993]
[1729679956845,1.72505967,2585.0,2584.7,0.79556993]
[1729679957050,3.86864,2584.9,2584.7,0.7869]
[1729679957276,5.59369967,2584.9,2584.5,0.76956993]
[1729679957492,1.72505967,2584.6,2584.5,0.76956993]
[1729679957658,5.59405967,2584.7,2584.3,0.84096993]
[1729679958264,3.869,2584.7,2584.3,0.84096993]
[1729679959059,3.86877,2584.8,2584.3,0.84096993]
[1729679962183,3.86879,2584.8,2584.3,0.84096993]
[1729679962356,3.86894,2584.7,2584.3,0.84096993]
[1729679962562,3.86878,2584.8,2584.3,0.84096993]
[1729679964781,3.86862,2584.9,2584.3,0.84096993]
[1729679965493,3.0,2585.0,2584.6,0.00866993]
[1729679965695,3.0,2585.0,2584.7,0.8288]
[1729679965984,3.86789,2585.4,2584.8,0.00866993]
[1729679966382,3.86832,2585.1,2584.8,0.00866993]
[1729679966870,3.86824,2585.2,2584.8,0.00866993]
[1729679967248,3.86835,2585.1,2584.8,0.00866993]
[1729679973689,3.86847,2585.0,2584.8,0.00866993]
[1729679974054,3.86862,2584.9,2584.8,0.00866993]
[1729679974962,3.86847,2585.0,2584.8,0.00866993]
[1729679975291,7.73703,2585.0,2584.8,0.00866993]
[1729679975518,3.86847,2585.0,2584.8,0.00866993]
[1729679978518,7.73701,2585.0,2584.8,1.73415251]
[1729679978905,3.86862,2584.9,2584.8,0.00866993]
[1729679979142,3.86877,2584.8,2584.7,2.55428258]
[1729679984446,3.86877,2584.8,2584.7,2.55428258]
[1729679985405,3.86843,2585.1,2584.7,2.55428258]
[1729679985606,3.86863,2584.9,2584.8,1.72548258]
[1729679986707,3.86863,2584.9,2584.7,2.55428258]
[1729679987047,3.86877,2584.8,2584.7,2.55428258]
[1729679988234,3.86863,2584.9,2584.7,2.55428258]
[1729679988543,3.86863,2584.9,2584.8,1.72548258]
[1729679994044,3.86863,2584.9,2584.7,2.55428258]
[1729679994242,3.86877,2584.8,2584.7,2.55428258]
[1729679994472,3.86907,2584.6,2584.5,0.77296993]
[1729679994644,3.86894,2584.7,2584.5,2.49845251]
[1729679995569,3.86907,2584.6,2584.5,2.49845251]
[1729679999387,3.86907,2584.6,2584.5,1.73415251]
[1729680000660,3.86907,2584.6,2584.5,1.72548258]
[1729680000860,3.86894,2584.7,2584.5,0.00866993]
[1729680001071,3.86907,2584.6,2584.5,0.00866993]
[1729680001408,3.86907,2584.6,2584.5,1.73415251]
[1729680001603,3.86907,2584.6,2584.5,1.72548258]
[1729680001772,3.86928,2584.5,2584.3,0.76876993]
[1729680001980,3.86928,2584.5,2584.4,1.72548258]
[1729680003267,3.86928,2584.5,2584.3,0.76876993]
[1729680003704,3.86928,2584.5,2584.3,2.49425251]
[1729680003888,3.86937,2584.4,2584.3,0.76876993]
[1729680004216,3.86966,2584.2,2584.1,0.82266993]
[1729680004401,3.86966,2584.2,2584.1,2.54815251]
[1729680005522,3.86966,2584.2,2584.0,1.72548258]
[1729680005523,3.86981,2584.1,2584.0,1.72548258]
[1729680005931,3.86996,2584.0,2583.9,0.00866993]
[1729680006233,3.87011,2583.9,2583.8,1.72548258]
[1729680007814,3.87026,2583.8,2583.7,0.00866993]
[1729680009739,3.87071,2583.5,2583.4,0.00866993]
[1729680010041,3.86967,2584.2,2583.2,0.8073]
[1729680010042,3.87101,2583.3,2583.2,0.8073]
[1729680010336,3.87101,2583.3,2583.2,2.53278258]
[1729680012124,3.87116,2583.2,2583.1,1.73415251]
[1729680012366,3.87116,2583.2,2583.1,0.00866993]
[1729680012549,3.87131,2583.1,2582.9,1.73415251]
[1729680012755,3.87146,2583.0,2582.9,1.73415251]
[1729680013874,3.87146,2583.0,2582.9,0.00866993]
[1729680014672,3.87146,2583.0,2582.9,1.73415251]
[1729680015936,3.87146,2583.0,2582.9,0.00866993]
[1729680016280,4.47750862,2583.0,2582.9,0.00866993]
[1729680016978,4.47750862,2583.0,2582.6,0.00866993]
[1729680016979,3.87176,2582.8,2582.6,0.00866993]
[1729680017148,3.87191,2582.7,2582.6,1.73415251]
[1729680017729,3.87221,2582.5,2582.4,0.00866993]
[1729680017934,3.87221,2582.5,2582.4,1.73415251]
[1729680018534,3.87221,2582.5,2582.4,0.00866993]
[1729680022677,3.87251,2582.3,2582.2,0.00866993]
[1729680030030,3.87161,2582.9,2582.0,0.83226993]
[1729680030031,3.87281,2582.1,2582.0,0.83226993]
[1729680030224,3.87311,2581.9,2581.8,0.81226993]
[1729680032712,3.87311,2581.9,2581.8,0.00866993]
[1729680033723,3.87341,2581.7,2581.6,0.78217272]
[1729680034230,3.87341,2581.7,2581.6,0.01347272]
[1729680035331,3.87328,2581.8,2581.5,0.72607272]
[1729680036238,3.87356,2581.6,2581.5,0.72607272]
[1729680037640,3.87356,2581.6,2581.5,0.67607272]
[1729680042432,3.87356,2581.6,2581.5,2.40558949]
[1729680046776,3.87343,2581.7,2581.5,2.40558949]
[1729680047062,3.87343,2581.7,2581.6,1.72951677]
[1729680051767,3.87356,2581.6,2581.4,3.35215293]
[1729680051971,3.87356,2581.6,2581.5,1.72951677]
[1729680052726,3.87356,2581.6,2581.5,3.35215293]
[1729680060374,3.87356,2581.6,2581.5,1.72951677]
[1729680060769,3.87356,2581.6,2581.5,3.35109596]
[1729680060947,3.87356,2581.6,2581.5,1.72951677]
[1729680062056,3.97096,2581.6,2581.4,1.62157919]
[1729680062387,3.97096,2581.6,2581.2,1.72951677]
[1729680062388,3.87401,2581.3,2581.2,1.72951677]
[1729680069102,3.97103,2581.6,2581.3,0.7822]
[1729680069103,3.87366,2581.6,2581.3,0.7822]
[1729680069312,3.96982,2582.4,2581.6,0.8135]
[1729680069590,3.87284,2582.1,2581.7,4.50086884]
[1729680069760,3.87305,2582.0,2581.7,0.62745884]
[1729680070489,3.87279,2582.2,2581.8,0.7557]
[1729680070670,3.87285,2582.1,2581.8,0.7557]
[1729680070872,3.87285,2582.1,2582.0,1.72951677]
[1729680071072,3.87272,2582.2,2582.0,1.72951677]
[1729680071385,3.87291,2582.1,2582.0,2.27951677]
[1729680073994,3.87291,2582.1,2581.8,0.7557]
[1729680073995,3.87311,2581.9,2581.8,3.03521677]
[1729680074379,3.87311,2581.9,2581.8,2.48521677]
[1729680074552,3.87311,2581.9,2581.8,1.72951677]
[1729680075057,3.87341,2581.7,2581.5,2.02986699]
[1729680075278,3.87341,2581.7,2581.5,1.72951677]
[1729680075495,3.87341,2581.7,2581.6,1.72951677]
[1729680075707,0.0974,2582.0,2581.4,0.7853]
[1729680075853,3.87311,2581.9,2581.4,0.7853]
[1729680076055,3.87311,2581.9,2581.4,2.51481677]
[1729680076056,3.87371,2581.5,2581.4,2.51481677]
[1729680076252,3.87358,2581.6,2581.4,2.51481677]
[1729680076457,3.87358,2581.6,2581.5,1.72951677]
[1729680077707,3.87358,2581.6,2581.0,2.43727765]
[1729680077708,3.87386,2581.4,2581.2,2.79576471]
[1729680077874,3.87386,2581.4,2581.3,1.72951677]
[1729680079282,3.87386,2581.4,2581.3,3.35474364]
[1729680081712,3.87374,2581.5,2581.3,3.35474364]
[1729680081872,3.87374,2581.5,2581.4,3.35464853]
[1729680082370,3.87354,2581.7,2581.4,3.76098127]
[1729680082575,3.87332,2581.8,2581.6,3.35451056]
[1729680082776,3.87332,2581.8,2581.7,1.72951677]
[1729680083020,3.87332,2581.8,2581.6,1.62499379]
[1729680083322,3.87332,2581.8,2581.6,3.35451056]
[1729680083676,3.87341,2581.7,2581.6,3.35451056]
[1729680083905,3.87341,2581.7,2581.6,1.62499379]
[1729680086805,3.87341,2581.7,2581.5,2.38689379]
[1729680087694,7.74695,2581.7,2581.5,4.11641056]
[1729680087990,7.74695,2581.7,2581.5,2.38689379]
[1729680088315,3.87343,2581.7,2581.5,2.38689379]
[1729680088528,7.74697,2581.7,2581.5,2.38689379]
[1729680089115,3.87343,2581.7,2581.6,1.62499379]
[1729680089510,3.87343,2581.7,2581.5,2.38689379]
[1729680089706,3.87327,2581.8,2581.6,1.62499379]
[1729680090220,3.87308,2582.0,2581.7,2.56011677]
[1729680090440,0.60629632,2582.1,2581.7,2.56011677]
[1729680090441,0.60629632,2582.1,2581.8,3.35451056]
[1729680090741,3.873,2582.0,2581.8,3.35451056]
[1729680091798,4.47912632,2582.1,2581.8,3.35451056]
[1729680092193,0.60629632,2582.1,2581.9,1.72951677]
[1729680092393,3.87267,2582.2,2582.0,1.72951677]
[1729680092591,3.87267,2582.2,2582.0,2.55101677]
[1729680092933,7.74543,2582.2,2582.0,0.8215]
[1729680093230,3.87267,2582.2,2582.0,2.55101677]
[1729680093901,3.87281,2582.1,2582.0,0.8215]
[1729680096466,3.87299,2582.0,2581.8,2.41009379]
[1729680096832,3.87284,2582.1,2581.8,4.13961056]
[1729680097537,7.74575,2582.1,2581.8,4.13961056]
[1729680097861,7.74577,2582.1,2581.8,4.13961056]
[1729680098064,7.74575,2582.1,2581.8,2.41009379]
[1729680098253,7.74575,2582.1,2581.8,4.13961056]
[1729680098456,7.74575,2582.1,2581.8,2.41009379]
[1729680098641,3.87284,2582.1,2581.8,4.13961056]
[1729680099321,3.87284,2582.1,2581.9,1.72951677]
[1729680099527,3.87284,2582.1,2581.8,4.13961056]
[1729680102363,3.87284,2582.1,2581.9,1.72951677]
[1729680103067,3.87284,2582.1,2581.8,4.13961056]
[1729680103221,3.87284,2582.1,2581.9,1.72951677]
[1729680103442,3.87284,2582.1,2581.8,4.13961056]
[1729680103908,3.873,2582.0,2581.8,4.13961056]
[1729680104481,3.87283,2582.1,2581.9,1.72951677]
[1729680104690,7.74576,2582.1,2581.9,1.72951677]
[1729680105082,3.87283,2582.1,2581.8,4.13961056]
[1729680105285,3.87296,2582.0,2581.8,4.13961056]
[1729680106404,3.87296,2582.0,2581.9,1.72951677]
[1729680106690,3.87296,2582.0,2581.8,4.13961056]
[1729680106983,3.87296,2582.0,2581.9,1.72951677]
[1729680108389,3.87296,2582.0,2581.8,2.51461677]
[1729680108560,3.87296,2582.0,2581.8,4.13961056]
[1729680108765,3.87296,2582.0,2581.9,1.72951677]
[1729680109496,3.87311,2581.9,2581.8,1.62499379]
[1729680109696,3.8729,2582.1,2581.8,1.62499379]
[1729680109865,3.87297,2582.0,2581.7,3.35451056]
[1729680110200,3.87297,2582.0,2581.7,1.72951677]
[1729680110553,3.87297,2582.0,2581.8,1.72951677]
[1729680110781,3.87263,2582.3,2581.9,2.54491677]
[1729680110782,3.87284,2582.1,2581.9,2.54491677]
[1729680112874,3.87284,2582.1,2581.9,0.8154]
[1729680113064,3.87284,2582.1,2581.9,2.54491677]
[1729680115137,7.74575,2582.1,2581.9,2.54491677]
[1729680115490,3.87284,2582.1,2581.9,2.54491677]
[1729680116046,3.87261,2582.3,2581.9,2.54491677]
[1729680116243,3.87266,2582.2,2582.0,1.72951677]
[1729680121739,3.87283,2582.1,2581.9,4.16991056]
[1729680123325,3.87283,2582.1,2581.9,2.54491677]
[1729680123531,3.87289,2582.1,2581.9,4.16991056]
[1729680123950,3.87289,2582.1,2581.9,2.54491677]
[1729680124142,3.87289,2582.1,2581.9,2.44039379]
[1729680124351,3.87296,2582.0,2581.8,3.35451056]
[1729680124642,3.87296,2582.0,2581.9,1.62499379]
[1729680125147,3.87296,2582.0,2581.8,1.62499379]
[1729680125346,3.87311,2581.9,2581.8,1.62499379]
[1729680125648,3.87311,2581.9,2581.7,3.35451056]
[1729680126172,7.74605,2582.0,2581.7,3.35451056]
[1729680126372,7.74605,2582.0,2581.8,1.72951677]
[1729680126733,7.74605,2582.0,2581.8,3.35451056]
[1729680126942,3.87311,2581.9,2581.8,1.62499379]
[1729680131279,3.87311,2581.9,2581.8,3.35451056]
[1729680131438,3.87311,2581.9,2581.8,1.72951677]
[1729680132039,3.87311,2581.9,2581.8,1.62429888]
[1729680133852,3.87326,2581.8,2581.7,1.62429888]
[1729680134047,3.87326,2581.8,2581.7,3.35381565]
[1729680134284,3.97066,2581.8,2581.6,2.03028661]
[1729680134448,3.97066,2581.8,2581.7,1.62485756]
[1729680134649,3.97066,2581.8,2581.6,1.62485756]
[1729680134855,3.87341,2581.7,2581.6,1.62485756]
[1729680135389,3.87341,2581.7,2581.5,1.62485756]
[1729680135585,3.87356,2581.6,2581.5,1.72951677]
[1729680135785,3.87356,2581.6,2581.5,3.35437433]
[1729680136099,3.87341,2581.7,2581.5,1.72951677]
[1729680136252,3.87341,2581.7,2581.6,3.35431155]
[1729680138448,3.87341,2581.7,2581.5,1.62479478]
[1729680138653,3.87341,2581.7,2581.6,1.72951677]
[1729680140489,3.87326,2581.8,2581.7,0.7687]
[1729680140697,3.87326,2581.8,2581.7,2.49821677]
[1729680141013,3.87326,2581.8,2581.7,0.7687]
[1729680141247,3.87326,2581.8,2581.7,2.49821677]
[1729680142035,3.87341,2581.7,2581.6,3.35431155]
[1729680142412,3.87341,2581.7,2581.6,1.72951677]
[1729680142600,3.87341,2581.7,2581.6,3.35431155]
[1729680142944,3.87341,2581.7,2581.6,1.72951677]
[1729680143111,3.87356,2581.6,2581.5,1.62383872]
[1729680143321,3.87356,2581.6,2581.5,3.35335549]
[1729680143636,3.87356,2581.6,2581.5,1.62383872]
[1729680144059,3.87371,2581.5,2581.3,1.62383872]
[1729680144200,3.87401,2581.3,2581.2,1.62383872]
[1729680144402,3.87416,2581.2,2581.1,1.62383872]
[1729680144598,3.87416,2581.2,2581.0,2.03099348]
[1729680144599,3.87416,2581.2,2581.0,1.62383872]
[1729680144838,3.87394,2581.4,2581.1,0.7967]
[1729680145040,3.87356,2581.6,2581.0,1.62383872]
[1729680145348,3.87408,2581.3,2581.0,1.62383872]
[1729680145745,3.87408,2581.3,2581.1,1.72951677]
[1729680146047,3.87392,2581.4,2581.2,1.72951677]
[1729680146336,3.87392,2581.4,2581.3,1.72951677]
[1729680146499,3.87374,2581.5,2581.3,1.72951677]
[1729680146703,3.87374,2581.5,2581.4,1.72951677]
[1729680147011,3.87374,2581.5,2581.3,1.72951677]
[1729680147339,3.87386,2581.4,2581.3,1.72951677]
[1729680154767,3.87362,2581.6,2581.3,1.72951677]
[1729680155062,3.87374,2581.5,2581.4,1.72951677]
[1729680155248,3.87374,2581.5,2581.3,1.72951677]
[1729680155451,3.87374,2581.5,2581.2,1.72951677]
[1729680155452,3.87386,2581.4,2581.2,1.72951677]
[1729680155650,3.87386,2581.4,2581.3,1.72951677]
[1729680155960,3.87374,2581.5,2581.3,1.72951677]
[1729680156329,3.87386,2581.4,2581.3,1.72951677]
[1729680158063,3.87386,2581.4,2581.2,1.72951677]
[1729680158357,3.87372,2581.5,2581.3,1.72951677]
[1729680158924,7.74753,2581.5,2581.3,1.72951677]
[1729680159845,3.87372,2581.5,2581.4,1.72951677]
[1729680160361,3.87364,2581.6,2581.4,2.52511677]
[1729680161570,3.87371,2581.5,2581.4,2.52511677]
[1729680165675,3.87371,2581.5,2581.4,0.7956]
[1729680166042,3.87371,2581.5,2581.3,1.72951677]
[1729680166247,3.8741,2581.3,2581.1,1.72951677]
[1729680166581,3.8741,2581.3,2581.2,1.72951677]
[1729680166782,3.87388,2581.4,2581.2,1.72951677]
[1729680166949,3.87388,2581.4,2581.3,1.72951677]
[1729680168277,3.87384,2581.5,2581.3,1.72951677]
[1729680168278,3.87359,2581.6,2581.3,2.55821677]
[1729680168579,3.87359,2581.6,2581.5,1.72951677]
[1729680171233,3.87371,2581.5,2581.4,1.72951677]
[1729680171376,3.87358,2581.6,2581.4,1.72951677]
[1729680172096,3.87358,2581.6,2581.5,1.72951677]
[1729680172985,3.87358,2581.6,2581.4,1.72951677]
[1729680174659,3.87371,2581.5,2581.4,1.72951677]
[1729680175072,3.87358,2581.6,2581.4,1.72951677]
[1729680175503,3.87371,2581.5,2581.4,1.72951677]
[1729680176123,3.87359,2581.6,2581.4,1.72951677]
[1729680176616,3.87371,2581.5,2581.4,1.72951677]
[1729680176971,3.97042,2582.0,2581.4,3.77930848]
[1729680177311,3.87326,2581.8,2581.7,0.7816]
[1729680177815,3.87326,2581.8,2581.7,2.51111677]
[1729680178110,3.87326,2581.8,2581.7,1.72951677]
[1729680181412,3.87326,2581.8,2581.6,1.72951677]
[1729680182017,7.74662,2581.8,2581.6,1.72951677]
[1729680182998,3.87341,2581.7,2581.6,1.72951677]
[1729680183183,3.87341,2581.7,2581.5,4.15335549]
[1729680183698,3.87341,2581.7,2581.5,2.52951677]
[1729680184625,3.87311,2581.9,2581.6,1.72951677]
[1729680184833,3.87327,2581.8,2581.6,1.72951677]
[1729680185927,3.87327,2581.8,2581.5,4.15218858]
[1729680186126,3.87327,2581.8,2581.5,5.20022271]
[1729680186329,3.87327,2581.8,2581.5,3.47070594]
[1729680186532,3.87326,2581.8,2581.5,4.15218858]
[1729680188531,3.87342,2581.7,2581.5,3.35218858]
[1729680188740,3.87342,2581.7,2581.5,1.62267181]
[1729680190829,3.87342,2581.7,2581.5,3.35218858]
[1729680191336,3.87333,2581.8,2581.5,3.35218858]
[1729680192020,3.87311,2581.9,2581.5,1.62267181]
[1729680192224,3.87348,2581.7,2581.5,1.62267181]
[1729680192394,3.87348,2581.7,2581.5,3.35218858]
[1729680192805,3.87348,2581.7,2581.5,1.62267181]
[1729680193644,3.87348,2581.7,2581.6,1.62267181]
[1729680196939,3.87332,2581.8,2581.6,1.62267181]
[1729680197653,3.87341,2581.7,2581.6,1.62267181]
[1729680198716,0.0974,2582.0,2581.6,3.35218858]
[1729680198917,3.87304,2582.0,2581.8,1.72951677]
[1729680199117,3.87311,2581.9,2581.7,4.12418858]
[1729680199563,3.87326,2581.8,2581.7,2.39467181]
[1729680199736,3.87326,2581.8,2581.7,1.62267181]
[1729680201061,3.87341,2581.7,2581.6,1.62267181]
[1729680201424,3.87341,2581.7,2581.6,1.72951677]
[1729680201850,3.87341,2581.7,2581.6,2.53831677]
[1729680202024,3.87309,2582.0,2581.6,4.16098858]
[1729680202220,3.87319,2581.9,2581.8,1.72951677]
[1729680203262,3.87326,2581.8,2581.7,3.35218858]
[1729680203557,3.87319,2581.9,2581.7,3.35218858]
[1729680203558,7.7464,2581.9,2581.7,3.35218858]
[1729680203755,3.87319,2581.9,2581.7,3.35218858]
[1729680203957,3.87319,2581.9,2581.8,1.72951677]
[1729680204317,3.87319,2581.9,2581.7,1.72951677]
[1729680204521,3.87319,2581.9,2581.7,3.35218858]
[1729680205155,3.87326,2581.8,2581.7,1.62267181]
[1729680205471,3.87341,2581.7,2581.6,1.62267181]
[1729680205649,3.87341,2581.7,2581.6,3.35218858]
[1729680206085,3.87329,2581.8,2581.6,3.35218858]
[1729680206292,3.87312,2581.9,2581.7,1.72951677]
[1729680206790,3.87327,2581.8,2581.7,1.72951677]
[1729680206997,3.87316,2581.9,2581.7,1.72951677]
[1729680207787,7.74637,2581.9,2581.7,1.72951677]
[1729680207995,3.87316,2581.9,2581.7,1.72951677]
[1729680209360,3.87316,2581.9,2581.6,3.35218858]
[1729680209548,3.87326,2581.8,2581.6,4.27783243]
[1729680210585,3.87341,2581.7,2581.6,2.54831566]
[1729680210868,3.87341,2581.7,2581.6,1.62267181]
[1729680211602,3.87341,2581.7,2581.5,3.35218858]
[1729680212187,3.87341,2581.7,2581.5,1.62267181]
[1729680212766,3.87356,2581.6,2581.5,1.62267181]
[1729680212971,3.87337,2581.8,2581.5,1.72951677]
[1729680213200,3.87337,2581.8,2581.6,1.72951677]
[1729680213201,3.8735,2581.7,2581.6,1.72951677]
[1729680213403,0.0974,2581.9,2581.5,1.72951677]
[1729680213604,3.87354,2581.7,2581.5,1.72951677]
[1729680213990,3.87356,2581.6,2581.5,1.72951677]
[1729680214394,3.87356,2581.6,2581.5,3.3539007]
[1729680215399,3.87356,2581.6,2581.5,1.62438393]
[1729680220702,7.74696,2581.7,2581.5,1.62438393]
[1729680221014,3.87344,2581.7,2581.5,1.62438393]
[1729680221212,3.87356,2581.6,2581.5,1.62438393]
[1729680223293,3.87343,2581.7,2581.5,1.62438393]
[1729680223483,3.87332,2581.8,2581.6,1.72951677]
[1729680223691,3.87332,2581.8,2581.6,3.3539007]
[1729680225372,3.87332,2581.8,2581.7,1.72951677]
[1729680225573,3.87332,2581.8,2581.6,3.3539007]
[1729680225919,3.87341,2581.7,2581.6,3.3539007]
[1729680226584,3.87341,2581.7,2581.6,1.62438393]
[1729680226932,3.87341,2581.7,2581.5,3.76038456]
[1729680227075,3.87341,2581.7,2581.6,1.62451129]
[1729680228520,3.97081,2581.7,2581.6,1.62451129]
[1729680228678,3.87356,2581.6,2581.5,3.35402806]
[1729680228877,3.87356,2581.6,2581.5,1.62451129]
[1729680229210,3.87356,2581.6,2581.5,3.76015686]
[1729680230696,3.87342,2581.7,2581.6,0.8283]
[1729680230900,3.87342,2581.7,2581.6,2.45293445]
[1729680231097,3.87342,2581.7,2581.6,4.18245122]
[1729680231406,3.87342,2581.7,2581.6,2.45293445]
[1729680232336,3.87342,2581.7,2581.6,1.62463445]
[1729680241467,3.87342,2581.7,2581.6,3.35415122]
[1729680241769,3.87342,2581.7,2581.6,1.62463445]
[1729680241921,0.0974,2582.1,2581.6,3.97547624]
[1729680242138,3.87308,2582.0,2581.8,1.62463445]
[1729680242315,3.87306,2582.0,2581.8,1.62463445]
[1729680242510,3.87285,2582.1,2581.8,1.62463445]
[1729680242511,3.87283,2582.1,2581.9,0.4232409]
[1729680242815,3.87283,2582.1,2582.0,1.72951677]
[1729680245797,3.87244,2582.4,2582.1,0.7536]
[1729680246100,3.87244,2582.4,2582.2,1.72951677]
[1729680246263,3.87256,2582.3,2582.1,2.48311677]
[1729680248298,3.87244,2582.4,2582.2,1.72951677]
[1729680249033,3.96956,2582.6,2582.3,1.72951677]
[1729680249034,3.87231,2582.5,2582.3,1.72951677]
[1729680249799,3.87213,2582.6,2582.2,2.52758789]
[1729680249949,3.87236,2582.4,2582.2,2.52758789]
[1729680252862,3.87213,2582.6,2582.2,2.52758789]
[1729680252863,3.87228,2582.5,2582.3,1.72951677]
[1729680253059,3.87228,2582.5,2582.3,2.44491056]
[1729680253600,3.87213,2582.6,2582.3,2.44491056]
[1729680254118,3.87224,2582.5,2582.3,2.44491056]
[1729680255324,3.87224,2582.5,2582.4,1.72951677]
[1729680256522,3.87224,2582.5,2582.3,2.44491056]
[1729680257439,3.87224,2582.5,2582.3,1.72951677]
[1729680257618,3.87213,2582.6,2582.3,1.72951677]
[1729680257799,3.87236,2582.4,2582.3,1.72951677]
[1729680258390,7.74431,2582.6,2582.3,1.72951677]
[1729680258592,3.87213,2582.6,2582.4,1.72951677]
[1729680258791,3.87209,2582.6,2582.4,1.72951677]
[1729680259490,3.87221,2582.5,2582.4,1.72951677]
[1729680261335,3.87236,2582.4,2582.1,0.7536]
[1729680261492,3.87236,2582.4,2582.2,1.72951677]
[1729680262466,3.87251,2582.3,2582.1,2.48311677]
[1729680263378,3.87251,2582.3,2582.1,0.7536]
[1729680263535,3.87266,2582.2,2582.1,2.48311677]
[1729680267578,3.87239,2582.4,2582.1,2.48311677]
[1729680267871,3.87251,2582.3,2582.2,1.72951677]
[1729680270996,3.87239,2582.4,2582.2,1.72951677]
[1729680271345,3.87239,2582.4,2582.3,1.72951677]
[1729680273688,3.87239,2582.4,2582.1,0.7536]
[1729680273689,3.87239,2582.4,2582.2,1.72951677]
[1729680274575,3.87239,2582.4,2582.3,1.72951677]
[1729680277490,3.87239,2582.4,2582.2,1.72951677]
[1729680283030,3.87239,2582.4,2582.1,2.48311677]
[1729680284291,3.87239,2582.4,2582.1,4.10198579]
[1729680284930,3.87239,2582.4,2582.2,1.72951677]
[1729680286215,3.87239,2582.4,2582.1,4.10198579]
[1729680286431,3.87239,2582.4,2582.2,1.72951677]
[1729680287634,3.87239,2582.4,2582.2,3.34838579]
[1729680290740,3.87239,2582.4,2582.3,1.61886902]
[1729680291036,3.87222,2582.5,2582.3,1.61886902]
[1729680292797,3.87236,2582.4,2582.3,1.61886902]
[1729680299445,3.87222,2582.5,2582.3,1.61886902]
[1729680299743,3.87222,2582.5,2582.3,3.34838579]
[1729680300346,3.87197,2582.7,2582.4,1.61886902]
[1729680300502,3.87213,2582.6,2582.4,2.40226902]
[1729680300708,3.87213,2582.6,2582.4,1.61886902]
[1729680300903,3.87221,2582.5,2582.4,1.61886902]
[1729680301217,3.87221,2582.5,2582.3,1.61886902]
[1729680301218,3.87236,2582.4,2582.3,1.61886902]
[1729680302140,7.74483,2582.4,2582.1,3.34838579]
[1729680302326,7.74483,2582.4,2582.3,1.61886902]
[1729680303254,3.87236,2582.4,2582.3,1.61886902]
[1729680303557,3.87181,2582.8,2582.4,0.7785]
[1729680303849,3.87181,2582.8,2582.6,1.72951677]
[1729680304048,3.87181,2582.8,2582.6,1.62402649]
[1729680304644,3.87202,2582.7,2582.5,3.35354326]
[1729680304857,3.87206,2582.6,2582.5,1.62402649]
[1729680305142,3.87221,2582.5,2582.4,1.62402649]
[1729680305353,3.87221,2582.5,2582.2,0.7584]
[1729680305354,3.87236,2582.4,2582.2,1.62402649]
[1729680305651,3.87251,2582.3,2582.2,1.62402649]
[1729680306511,3.96991,2582.3,2582.2,1.62402649]
[1729680307926,3.96991,2582.3,2582.1,1.62402649]
[1729680308411,3.87266,2582.2,2582.1,1.62402649]
[1729680308611,3.87266,2582.2,2582.1,3.35354326]
[1729680309028,3.87266,2582.2,2582.1,1.72951677]
[1729680309411,3.87266,2582.2,2582.0,2.02969068]
[1729680309640,3.87266,2582.2,2582.0,3.75920745]
[1729680310007,3.87266,2582.2,2582.0,2.02969068]
[1729680310241,3.87266,2582.2,2582.1,1.72951677]
[1729680310855,3.87266,2582.2,2582.0,3.75920745]
[1729680311449,3.87266,2582.2,2582.1,1.72951677]
[1729680312017,3.87266,2582.2,2582.1,1.6235718]
[1729680312434,3.87281,2582.1,2581.9,3.75920745]
[1729680312636,3.87281,2582.1,2582.0,1.62364466]
[1729680313410,0.0974,2582.6,2582.0,3.97150664]
[1729680313615,3.87193,2582.7,2582.5,1.72951677]
[1729680313839,3.87193,2582.7,2582.6,0.7527]
[1729680314331,3.87173,2582.9,2582.6,0.7527]
[1729680314556,3.87187,2582.8,2582.7,1.72951677]
[1729680318483,3.87187,2582.8,2582.6,2.48221677]
[1729680321482,3.87187,2582.8,2582.6,0.7527]
[1729680322602,3.87187,2582.8,2582.6,2.48221677]
[1729680323858,3.87183,2582.8,2582.6,0.7527]
[1729680324584,3.87191,2582.7,2582.6,1.72951677]
[1729680325285,3.87163,2582.9,2582.6,1.72951677]
[1729680325481,3.87163,2582.9,2582.7,1.72951677]
[1729680325643,7.74335,2582.9,2582.7,1.72951677]
[1729680325848,3.87163,2582.9,2582.7,1.72951677]
[1729680326981,7.74334,2582.9,2582.7,1.72951677]
[1729680328082,3.87163,2582.9,2582.7,1.72951677]
[1729680328887,3.87176,2582.8,2582.5,1.62364466]
[1729680329051,3.87206,2582.6,2582.5,1.72951677]
[1729680330792,3.87197,2582.7,2582.5,1.72951677]
[1729680330992,3.87197,2582.7,2582.4,4.17836143]
[1729680332798,3.87197,2582.7,2582.4,4.17719665]
[1729680333966,3.87197,2582.7,2582.5,1.72951677]
[1729680337997,3.87197,2582.7,2582.4,4.17719665]
[1729680338703,3.87197,2582.7,2582.5,1.72951677]
[1729680339664,3.8718,2582.8,2582.5,1.72951677]